[Event "Titled Tuesday Blitz February 07 Early 2023"]
[White "Forgacs, Attila Jr."]
[Black "Karas, Marek"]
[WhiteFideId "773654"]
[BlackFideId "14928558"]
[WhiteElo "2264"]
[BlackElo "2227"]
[Result "0-1"]
[Round "05"]
[TimeControl "180+2"]
[Date "2023.02.07"]
[WhiteClock "0:00:03"]
[BlackClock "0:00:08"]

1. e4 {[%clk 0:02:57]}  e6 {[%clk 0:02:58]} 2. d4 {[%clk 0:02:57]}  d5 {[%clk 0:02:58]} 3. Nc3 {[%clk 0:02:58]}  Nf6 {[%clk 0:02:59]} 4. e5 {[%clk 0:02:58]}  Nfd7 {[%clk 0:02:59]} 5. f4 {[%clk 0:02:58]}  c5 {[%clk 0:03:00]} 6. Nf3 {[%clk 0:02:59]}  Nc6 {[%clk 0:03:00]} 7. Be3 {[%clk 0:03:00]}  Be7 {[%clk 0:03:01]} 8. Qd2 {[%clk 0:03:00]}  O-O {[%clk 0:03:01]} 9. h4 {[%clk 0:03:00]}  a6 {[%clk 0:02:52]} 10. h5 {[%clk 0:02:46]}  b5 {[%clk 0:02:47]} 11. dxc5 {[%clk 0:02:45]}  Nxc5 {[%clk 0:02:42]} 12. O-O-O {[%clk 0:02:33]}  b4 {[%clk 0:02:39]} 13. Ne2 {[%clk 0:02:34]}  Ne4 {[%clk 0:02:38]} 14. Qe1 {[%clk 0:02:34]}  a5 {[%clk 0:02:30]} 15. Ned4 {[%clk 0:02:34]}  Nxd4 {[%clk 0:02:28]} 16. Nxd4 {[%clk 0:02:30]}  Bd7 {[%clk 0:02:23]} 17. g4 {[%clk 0:02:24]}  a4 {[%clk 0:02:15]} 18. Bd3 {[%clk 0:02:17]}  Qc7 {[%clk 0:02:07]} 19. Bxe4 {[%clk 0:02:13]}  dxe4 {[%clk 0:02:08]} 20. Kb1 {[%clk 0:02:12]}  Rfc8 {[%clk 0:02:02]} 21. Rh2 {[%clk 0:01:49]}  b3 {[%clk 0:01:42]} 22. cxb3 {[%clk 0:01:49]}  axb3 {[%clk 0:01:42]} 23. Nxb3 {[%clk 0:01:26]}  Bc6 {[%clk 0:01:31]} 24. Rc2 {[%clk 0:01:18]}  Qb7 {[%clk 0:01:27]} 25. Rdc1 {[%clk 0:01:14]}  Qa6 {[%clk 0:01:16]} 26. a3 {[%clk 0:01:04]}  Bxa3 {[%clk 0:00:50]} 27. Rxc6 {[%clk 0:00:41]}  Rxc6 {[%clk 0:00:46]} 28. Rxc6 {[%clk 0:00:41]}  Qd3+ {[%clk 0:00:28]} 29. Rc2 {[%clk 0:00:24]}  Qxb3 {[%clk 0:00:25]} 30. Qc3 {[%clk 0:00:23]}  Qb7 {[%clk 0:00:19]} 31. Qc6 {[%clk 0:00:19]}  Qb8 {[%clk 0:00:17]} 32. Qc7 {[%clk 0:00:12]}  Qb3 {[%clk 0:00:16]} 33. Qc8+ {[%clk 0:00:06]}  Rxc8 {[%clk 0:00:15]} 34. Rxc8+ {[%clk 0:00:07]}  Bf8 {[%clk 0:00:16]} 35. Bc5 {[%clk 0:00:07]}  Qd1+ {[%clk 0:00:11]} 36. Ka2 {[%clk 0:00:07]}  Qa4+ {[%clk 0:00:10]} 37. Kb1 {[%clk 0:00:08]}  h6 {[%clk 0:00:10]} 38. Rxf8+ {[%clk 0:00:04]}  Kh7 {[%clk 0:00:10]} 39. b4 {[%clk 0:00:03]}  Qd1+ {[%clk 0:00:08]} 40. Kb2 {[%clk 0:00:03]}  Qd2+ {[%clk 0:00:08]} 41. Kb3 {[%clk 0:00:03]}  Qd3+ {[%clk 0:00:08]} 42. Ka4 {[%clk 0:00:03]}  e3 {[%clk 0:00:08]} 0-1


[Site "https://www.chess.com"]

[Event "Titled Tuesday Blitz February 07 Early 2023"]
[White "Janaszak, Dawid"]
[Black "Bethke, Richard"]
[WhiteFideId "1119206"]
[BlackFideId "12959243"]
[WhiteElo "2316"]
[BlackElo "2382"]
[Result "1-0"]
[Round "05"]
[TimeControl "180+2"]
[Date "2023.02.07"]
[WhiteClock "0:01:14"]
[BlackClock "0:00:53"]

1. e4 {[%clk 0:03:00]}  c6 {[%clk 0:02:59]} 2. d4 {[%clk 0:02:54]}  d5 {[%clk 0:03:00]} 3. exd5 {[%clk 0:02:55]}  cxd5 {[%clk 0:02:59]} 4. Bd3 {[%clk 0:02:55]}  Nc6 {[%clk 0:02:58]} 5. c3 {[%clk 0:02:55]}  Nf6 {[%clk 0:02:55]} 6. Bf4 {[%clk 0:02:55]}  Bg4 {[%clk 0:02:53]} 7. Qb3 {[%clk 0:02:55]}  Qb6 {[%clk 0:02:52]} 8. h3 {[%clk 0:02:55]}  Bh5 {[%clk 0:02:49]} 9. Qxb6 {[%clk 0:02:50]}  axb6 {[%clk 0:02:50]} 10. Na3 {[%clk 0:02:50]}  e5 {[%clk 0:02:31]} 11. Nb5 {[%clk 0:02:50]}  exf4 {[%clk 0:02:31]} 12. Nc7+ {[%clk 0:02:50]}  Kd8 {[%clk 0:02:30]} 13. Nxa8 {[%clk 0:02:51]}  Nd7 {[%clk 0:02:30]} 14. Bf5 {[%clk 0:02:50]}  Ncb8 {[%clk 0:02:27]} 15. a4 {[%clk 0:02:40]}  Bd6 {[%clk 0:02:18]} 16. a5 {[%clk 0:02:37]}  Re8+ {[%clk 0:02:17]} 17. Kd2 {[%clk 0:02:24]}  bxa5 {[%clk 0:02:16]} 18. Rxa5 {[%clk 0:02:21]}  Nf6 {[%clk 0:01:47]} 19. Nf3 {[%clk 0:02:20]}  g6 {[%clk 0:01:43]} 20. Bd3 {[%clk 0:02:15]}  Nc6 {[%clk 0:01:43]} 21. Rb5 {[%clk 0:02:05]}  Ne4+ {[%clk 0:01:41]} 22. Bxe4 {[%clk 0:01:53]}  dxe4 {[%clk 0:01:42]} 23. Ng5 {[%clk 0:01:50]}  e3+ {[%clk 0:01:39]} 24. fxe3 {[%clk 0:01:48]}  fxe3+ {[%clk 0:01:39]} 25. Kd3 {[%clk 0:01:37]}  Re7 {[%clk 0:01:22]} 26. g4 {[%clk 0:01:32]}  e2 {[%clk 0:00:54]} 27. Re1 {[%clk 0:01:31]}  Bf4 {[%clk 0:00:53]} 28. Rxe2 {[%clk 0:01:14]} 1-0


[Site "https://www.chess.com"]

[Event "Titled Tuesday Blitz February 07 Early 2023"]
[White "Lorenzo De La Riva, Lazaro"]
[Black "Cori T., Deysi"]
[WhiteFideId "2268809"]
[BlackFideId "3801934"]
[WhiteElo "2404"]
[BlackElo "2362"]
[Result "1-0"]
[Round "05"]
[TimeControl "180+2"]
[Date "2023.02.07"]
[WhiteClock "0:01:19"]
[BlackClock "0:01:55"]

1. e4 {[%clk 0:02:24]}  e6 {[%clk 0:02:59]} 2. d3 {[%clk 0:02:21]}  d5 {[%clk 0:03:00]} 3. Qe2 {[%clk 0:02:22]}  Ne7 {[%clk 0:02:58]} 4. Nf3 {[%clk 0:02:21]}  a5 {[%clk 0:02:57]} 5. g3 {[%clk 0:02:21]}  Nbc6 {[%clk 0:02:58]} 6. Bg2 {[%clk 0:02:21]}  e5 {[%clk 0:02:58]} 7. O-O {[%clk 0:02:20]}  d4 {[%clk 0:02:57]} 8. c3 {[%clk 0:02:19]}  Bg4 {[%clk 0:02:56]} 9. h3 {[%clk 0:02:19]}  Bxf3 {[%clk 0:02:57]} 10. Qxf3 {[%clk 0:02:18]}  Qd7 {[%clk 0:02:57]} 11. Na3 {[%clk 0:02:13]}  O-O-O {[%clk 0:02:56]} 12. Rd1 {[%clk 0:02:12]}  h5 {[%clk 0:02:53]} 13. h4 {[%clk 0:02:12]}  f5 {[%clk 0:02:52]} 14. exf5 {[%clk 0:02:11]}  Nxf5 {[%clk 0:02:52]} 15. Bh3 {[%clk 0:02:10]}  g6 {[%clk 0:02:52]} 16. Nc4 {[%clk 0:02:09]}  Bc5 {[%clk 0:02:47]} 17. b4 {[%clk 0:02:04]}  axb4 {[%clk 0:02:46]} 18. cxb4 {[%clk 0:02:05]}  Nxb4 {[%clk 0:02:46]} 19. Rb1 {[%clk 0:02:04]}  Nc6 {[%clk 0:02:41]} 20. Bg2 {[%clk 0:02:00]}  Nd6 {[%clk 0:02:34]} 21. Nxd6+ {[%clk 0:01:39]}  Qxd6 {[%clk 0:02:31]} 22. Bg5 {[%clk 0:01:34]}  Rdf8 {[%clk 0:02:28]} 23. Qe2 {[%clk 0:01:34]}  Bb6 {[%clk 0:02:25]} 24. Rdc1 {[%clk 0:01:34]}  Kb8 {[%clk 0:02:23]} 25. a4 {[%clk 0:01:33]}  Qa3 {[%clk 0:02:23]} 26. Bxc6 {[%clk 0:01:27]}  bxc6 {[%clk 0:02:23]} 27. Rxc6 {[%clk 0:01:27]}  Rf5 {[%clk 0:01:55]} 28. Qe4 {[%clk 0:01:19]} 1-0


[Site "https://www.chess.com"]

[Event "Titled Tuesday Blitz February 07 Early 2023"]
[White "Jovic, Stanoje"]
[Black "Maksimenko, Viktor"]
[WhiteFideId "905020"]
[BlackFideId "13710478"]
[WhiteElo "2075"]
[BlackElo "2196"]
[Result "1-0"]
[Round "05"]
[TimeControl "180+2"]
[Date "2023.02.07"]
[WhiteClock "0:00:34"]
[BlackClock "0:00:53"]

1. c4 {[%clk 0:03:00]}  e5 {[%clk 0:02:59]} 2. g3 {[%clk 0:03:01]}  g6 {[%clk 0:02:59]} 3. d4 {[%clk 0:03:00]}  Nc6 {[%clk 0:02:55]} 4. d5 {[%clk 0:02:58]}  Nce7 {[%clk 0:02:55]} 5. h4 {[%clk 0:02:54]}  h5 {[%clk 0:02:44]} 6. Nc3 {[%clk 0:02:47]}  d6 {[%clk 0:02:41]} 7. Bg5 {[%clk 0:02:38]}  Bh6 {[%clk 0:02:32]} 8. e4 {[%clk 0:02:31]}  f6 {[%clk 0:02:28]} 9. Bd2 {[%clk 0:02:21]}  f5 {[%clk 0:02:24]} 10. Bg5 {[%clk 0:02:19]}  c5 {[%clk 0:02:15]} 11. dxc6 {[%clk 0:02:18]}  bxc6 {[%clk 0:02:13]} 12. c5 {[%clk 0:02:13]}  d5 {[%clk 0:02:10]} 13. exd5 {[%clk 0:02:08]}  cxd5 {[%clk 0:02:06]} 14. Bb5+ {[%clk 0:02:08]}  Kf8 {[%clk 0:02:01]} 15. Nf3 {[%clk 0:02:08]}  Bg7 {[%clk 0:01:56]} 16. Qe2 {[%clk 0:01:59]}  d4 {[%clk 0:01:54]} 17. Nxe5 {[%clk 0:01:54]}  dxc3 {[%clk 0:01:49]} 18. Nxg6+ {[%clk 0:01:53]}  Kf7 {[%clk 0:01:46]} 19. Nxh8+ {[%clk 0:01:51]}  Bxh8 {[%clk 0:01:45]} 20. Qxh5+ {[%clk 0:01:46]}  Kg7 {[%clk 0:01:42]} 21. Bc4 {[%clk 0:01:31]}  Qf8 {[%clk 0:01:35]} 22. O-O-O {[%clk 0:01:22]}  cxb2+ {[%clk 0:01:29]} 23. Kb1 {[%clk 0:01:22]}  Nf6 {[%clk 0:01:29]} 24. Bh6+ {[%clk 0:01:16]}  Kh7 {[%clk 0:01:25]} 25. Bxf8+ {[%clk 0:01:14]}  Nxh5 {[%clk 0:01:25]} 26. Bxe7 {[%clk 0:01:14]}  Bb7 {[%clk 0:01:26]} 27. Bd5 {[%clk 0:01:10]}  Bxd5 {[%clk 0:01:17]} 28. Rxd5 {[%clk 0:01:10]}  Kg6 {[%clk 0:01:17]} 29. g4 {[%clk 0:00:58]}  fxg4 {[%clk 0:01:16]} 30. Rg1 {[%clk 0:00:52]}  Ng7 {[%clk 0:01:09]} 31. Rxg4+ {[%clk 0:00:49]}  Kf7 {[%clk 0:01:05]} 32. Rd7 {[%clk 0:00:48]}  Nf5 {[%clk 0:01:02]} 33. Bd6+ {[%clk 0:00:41]}  Ke6 {[%clk 0:01:02]} 34. Rb7 {[%clk 0:00:41]}  Kd5 {[%clk 0:00:55]} 35. Rg5 {[%clk 0:00:39]}  Ke4 {[%clk 0:00:55]} 36. f3+ {[%clk 0:00:39]}  Kd3 {[%clk 0:00:53]} 37. Rxf5 {[%clk 0:00:37]}  Re8 {[%clk 0:00:53]} 38. Re7 {[%clk 0:00:34]}  Rg8 {[%clk 0:00:53]} 39. Rg5 {[%clk 0:00:34]} 1-0


[Site "https://www.chess.com"]

[Event "Titled Tuesday Blitz February 07 Early 2023"]
[White "Foerster-Yialamas, Lucas"]
[Black "Ambartsumova, Karina"]
[WhiteFideId "30901774"]
[BlackFideId "4166299"]
[WhiteElo "2151"]
[BlackElo "2393"]
[Result "0-1"]
[Round "05"]
[TimeControl "180+2"]
[Date "2023.02.07"]
[WhiteClock "0:00:01"]
[BlackClock "0:00:07"]

1. Nf3 {[%clk 0:03:00]}  Nf6 {[%clk 0:02:56]} 2. b3 {[%clk 0:03:01]}  g6 {[%clk 0:02:56]} 3. Bb2 {[%clk 0:03:01]}  Bg7 {[%clk 0:02:56]} 4. g4 {[%clk 0:03:00]}  d5 {[%clk 0:02:43]} 5. g5 {[%clk 0:02:57]}  Nh5 {[%clk 0:02:43]} 6. Qc1 {[%clk 0:02:57]}  c5 {[%clk 0:02:35]} 7. e3 {[%clk 0:02:51]}  Nc6 {[%clk 0:02:33]} 8. Bb5 {[%clk 0:02:49]}  Qd6 {[%clk 0:02:15]} 9. Bxg7 {[%clk 0:02:46]}  Nxg7 {[%clk 0:02:16]} 10. Qb2 {[%clk 0:02:44]}  O-O {[%clk 0:02:13]} 11. Bxc6 {[%clk 0:02:41]}  Qxc6 {[%clk 0:02:03]} 12. Ne5 {[%clk 0:02:41]}  Qd6 {[%clk 0:02:02]} 13. d4 {[%clk 0:02:32]}  cxd4 {[%clk 0:01:43]} 14. Qxd4 {[%clk 0:02:33]}  Ne6 {[%clk 0:01:35]} 15. Qb2 {[%clk 0:02:23]}  Nxg5 {[%clk 0:01:35]} 16. Nd2 {[%clk 0:02:23]}  Qf6 {[%clk 0:01:29]} 17. f4 {[%clk 0:02:21]}  Nh3 {[%clk 0:01:13]} 18. Ndf3 {[%clk 0:02:13]}  Bf5 {[%clk 0:01:10]} 19. O-O-O {[%clk 0:01:56]}  Nf2 {[%clk 0:01:07]} 20. Qd4 {[%clk 0:01:45]}  Nxh1 {[%clk 0:01:04]} 21. Rxh1 {[%clk 0:01:45]}  Rac8 {[%clk 0:01:04]} 22. c3 {[%clk 0:01:42]}  Be4 {[%clk 0:01:02]} 23. Rf1 {[%clk 0:01:37]}  Rc7 {[%clk 0:00:57]} 24. Nd2 {[%clk 0:01:21]}  Rfc8 {[%clk 0:00:54]} 25. Nxe4 {[%clk 0:01:19]}  dxe4 {[%clk 0:00:55]} 26. c4 {[%clk 0:01:18]}  b5 {[%clk 0:00:53]} 27. Kb2 {[%clk 0:01:12]}  bxc4 {[%clk 0:00:53]} 28. Nxc4 {[%clk 0:01:11]}  Qxd4+ {[%clk 0:00:52]} 29. exd4 {[%clk 0:01:12]}  Rd7 {[%clk 0:00:51]} 30. Kc3 {[%clk 0:01:08]}  Rd5 {[%clk 0:00:47]} 31. Re1 {[%clk 0:01:05]}  Rh5 {[%clk 0:00:43]} 32. Rxe4 {[%clk 0:00:44]}  Rxh2 {[%clk 0:00:42]} 33. Rxe7 {[%clk 0:00:43]}  Rxa2 {[%clk 0:00:42]} 34. d5 {[%clk 0:00:44]}  h5 {[%clk 0:00:19]} 35. d6 {[%clk 0:00:42]}  Rd8 {[%clk 0:00:20]} 36. Kd4 {[%clk 0:00:36]}  h4 {[%clk 0:00:20]} 37. Re3 {[%clk 0:00:31]}  Kg7 {[%clk 0:00:18]} 38. Rh3 {[%clk 0:00:26]}  Rh8 {[%clk 0:00:18]} 39. Kc5 {[%clk 0:00:22]}  Kf6 {[%clk 0:00:17]} 40. Kc6 {[%clk 0:00:20]}  Kf5 {[%clk 0:00:16]} 41. d7 {[%clk 0:00:18]}  Kg4 {[%clk 0:00:16]} 42. Rh1 {[%clk 0:00:18]}  Kg3 {[%clk 0:00:17]} 43. Re1 {[%clk 0:00:12]}  Rd8 {[%clk 0:00:09]} 44. Kc7 {[%clk 0:00:12]}  Rxd7+ {[%clk 0:00:09]} 45. Kxd7 {[%clk 0:00:13]}  h3 {[%clk 0:00:10]} 46. Ne5 {[%clk 0:00:12]}  h2 {[%clk 0:00:09]} 47. Nxf7 {[%clk 0:00:11]}  Rd2+ {[%clk 0:00:09]} 48. Ke6 {[%clk 0:00:08]}  Re2+ {[%clk 0:00:08]} 49. Rxe2 {[%clk 0:00:08]}  h1=Q {[%clk 0:00:09]} 50. Ne5 {[%clk 0:00:08]}  Qh3+ {[%clk 0:00:07]} 51. Kd5 {[%clk 0:00:05]}  Qf5 {[%clk 0:00:08]} 52. Re3+ {[%clk 0:00:05]}  Kf2 {[%clk 0:00:08]} 53. Rf3+ {[%clk 0:00:06]}  Ke2 {[%clk 0:00:08]} 54. Rd3 {[%clk 0:00:04]}  Qxf4 {[%clk 0:00:07]} 55. Rd4 {[%clk 0:00:03]}  Qf5 {[%clk 0:00:07]} 56. Re4+ {[%clk 0:00:03]}  Kd2 {[%clk 0:00:06]} 57. Rd4+ {[%clk 0:00:04]}  Kc2 {[%clk 0:00:07]} 58. b4 {[%clk 0:00:03]}  g5 {[%clk 0:00:08]} 59. b5 {[%clk 0:00:02]}  Kc3 {[%clk 0:00:07]} 60. Rc4+ {[%clk 0:00:02]}  Kb3 {[%clk 0:00:07]} 61. Rd4 {[%clk 0:00:02]}  Qf1 {[%clk 0:00:06]} 62. Rg4 {[%clk 0:00:02]}  Qxb5+ {[%clk 0:00:06]} 63. Ke4 {[%clk 0:00:03]}  Qe2+ {[%clk 0:00:05]} 64. Kf5 {[%clk 0:00:03]}  a5 {[%clk 0:00:04]} 65. Kxg5 {[%clk 0:00:01]}  a4 {[%clk 0:00:05]} 66. Kf5 {[%clk 0:00:01]}  a3 {[%clk 0:00:05]} 67. Re4 {[%clk 0:00:01]}  Qxe4+ {[%clk 0:00:03]} 68. Kxe4 {[%clk 0:00:01]}  a2 {[%clk 0:00:03]} 69. Nc6 {[%clk 0:00:01]}  a1=Q {[%clk 0:00:03]} 70. Nd4+ {[%clk 0:00:02]}  Kc4 {[%clk 0:00:04]} 71. Nf3 {[%clk 0:00:03]}  Qb1+ {[%clk 0:00:04]} 72. Kf4 {[%clk 0:00:03]}  Qh7 {[%clk 0:00:04]} 73. Ne5+ {[%clk 0:00:04]}  Kd5 {[%clk 0:00:05]} 74. Nf3 {[%clk 0:00:04]}  Qf7+ {[%clk 0:00:05]} 75. Ke3 {[%clk 0:00:04]}  Qe6+ {[%clk 0:00:04]} 76. Kf4 {[%clk 0:00:05]}  Qf7+ {[%clk 0:00:05]} 77. Ke3 {[%clk 0:00:05]}  Qf8 {[%clk 0:00:05]} 78. Nd2 {[%clk 0:00:03]}  Ke5 {[%clk 0:00:05]} 79. Nf3+ {[%clk 0:00:03]}  Kf5 {[%clk 0:00:05]} 80. Nd4+ {[%clk 0:00:04]}  Kg4 {[%clk 0:00:06]} 81. Kd3 {[%clk 0:00:04]}  Qd8 {[%clk 0:00:06]} 82. Kc4 {[%clk 0:00:04]}  Kg3 {[%clk 0:00:06]} 83. Nf5+ {[%clk 0:00:03]}  Kf4 {[%clk 0:00:06]} 84. Nd4 {[%clk 0:00:04]}  Ke4 {[%clk 0:00:06]} 85. Nb5 {[%clk 0:00:04]}  Qc8+ {[%clk 0:00:06]} 86. Kb4 {[%clk 0:00:04]}  Kd5 {[%clk 0:00:06]} 87. Nc3+ {[%clk 0:00:04]}  Kd4 {[%clk 0:00:06]} 88. Nb5+ {[%clk 0:00:05]}  Kd3 {[%clk 0:00:07]} 89. Ka5 {[%clk 0:00:03]}  Qb8 {[%clk 0:00:07]} 90. Kb4 {[%clk 0:00:02]}  Qb7 {[%clk 0:00:07]} 91. Kc5 {[%clk 0:00:02]}  Qc8+ {[%clk 0:00:07]} 92. Kd5 {[%clk 0:00:02]}  Qc4+ {[%clk 0:00:07]} 93. Kd6 {[%clk 0:00:01]}  Qxb5 {[%clk 0:00:07]} 0-1


[Site "https://www.chess.com"]

[Event "Titled Tuesday Blitz February 07 Early 2023"]
[White "Kopczynski, Michal"]
[Black "Babikov, Ivan"]
[WhiteFideId "1124200"]
[BlackFideId "4161106"]
[WhiteElo "2225"]
[BlackElo "2239"]
[Result "0-1"]
[Round "05"]
[TimeControl "180+2"]
[Date "2023.02.07"]
[WhiteClock "0:00:10"]
[BlackClock "0:00:12"]

1. e4 {[%clk 0:02:58]}  c6 {[%clk 0:02:59]} 2. d4 {[%clk 0:02:58]}  d5 {[%clk 0:02:59]} 3. Nc3 {[%clk 0:02:59]}  dxe4 {[%clk 0:02:58]} 4. Nxe4 {[%clk 0:03:00]}  Bf5 {[%clk 0:02:59]} 5. Ng3 {[%clk 0:03:00]}  Bg6 {[%clk 0:02:59]} 6. h4 {[%clk 0:03:01]}  h6 {[%clk 0:02:59]} 7. Nh3 {[%clk 0:03:01]}  Nd7 {[%clk 0:02:56]} 8. Nf4 {[%clk 0:03:01]}  Bh7 {[%clk 0:02:56]} 9. Bd3 {[%clk 0:03:02]}  Bxd3 {[%clk 0:02:55]} 10. Qxd3 {[%clk 0:03:03]}  Ngf6 {[%clk 0:02:55]} 11. Bd2 {[%clk 0:03:03]}  e6 {[%clk 0:02:55]} 12. O-O-O {[%clk 0:03:03]}  Bd6 {[%clk 0:02:56]} 13. Rhe1 {[%clk 0:03:03]}  O-O {[%clk 0:02:53]} 14. Nfh5 {[%clk 0:03:02]}  Nxh5 {[%clk 0:02:50]} 15. Nxh5 {[%clk 0:03:03]}  Qxh4 {[%clk 0:02:48]} 16. Rh1 {[%clk 0:03:00]}  Qe7 {[%clk 0:02:35]} 17. Nxg7 {[%clk 0:02:59]}  Kxg7 {[%clk 0:02:31]} 18. Bxh6+ {[%clk 0:02:56]}  Kg8 {[%clk 0:02:30]} 19. Qh3 {[%clk 0:01:24]}  Qf6 {[%clk 0:02:20]} 20. Rd3 {[%clk 0:00:56]}  Rfd8 {[%clk 0:01:57]} 21. Bd2 {[%clk 0:00:37]}  Nf8 {[%clk 0:01:37]} 22. Rf3 {[%clk 0:00:32]}  Qg7 {[%clk 0:01:30]} 23. Bh6 {[%clk 0:00:28]}  Qxd4 {[%clk 0:01:26]} 24. Bg5 {[%clk 0:00:24]}  Be5 {[%clk 0:01:06]} 25. c3 {[%clk 0:00:19]}  Qd5 {[%clk 0:00:51]} 26. Bxd8 {[%clk 0:00:18]}  Rxd8 {[%clk 0:00:43]} 27. Kb1 {[%clk 0:00:16]}  Qe4+ {[%clk 0:00:41]} 28. Ka1 {[%clk 0:00:16]}  Qe2 {[%clk 0:00:39]} 29. a3 {[%clk 0:00:15]}  Rd1+ {[%clk 0:00:34]} 30. Rxd1 {[%clk 0:00:15]}  Qxd1+ {[%clk 0:00:35]} 31. Ka2 {[%clk 0:00:16]}  Qd5+ {[%clk 0:00:33]} 32. Kb1 {[%clk 0:00:16]}  Ng6 {[%clk 0:00:31]} 33. Qg4 {[%clk 0:00:14]}  Qd1+ {[%clk 0:00:31]} 34. Ka2 {[%clk 0:00:14]}  Qd2 {[%clk 0:00:22]} 35. Qe4 {[%clk 0:00:13]}  Qd5+ {[%clk 0:00:21]} 36. Qxd5 {[%clk 0:00:13]}  cxd5 {[%clk 0:00:22]} 37. Kb3 {[%clk 0:00:13]}  Nf4 {[%clk 0:00:22]} 38. g3 {[%clk 0:00:12]}  Ng6 {[%clk 0:00:20]} 39. c4 {[%clk 0:00:11]}  Ne7 {[%clk 0:00:20]} 40. c5 {[%clk 0:00:11]}  Nc6 {[%clk 0:00:20]} 41. Re3 {[%clk 0:00:09]}  Bd4 {[%clk 0:00:19]} 42. Re2 {[%clk 0:00:08]}  Bxc5 {[%clk 0:00:20]} 43. Ka2 {[%clk 0:00:09]}  Nd4 {[%clk 0:00:19]} 44. Rd2 {[%clk 0:00:09]}  Nc6 {[%clk 0:00:20]} 45. b4 {[%clk 0:00:09]}  Bb6 {[%clk 0:00:19]} 46. Kb3 {[%clk 0:00:09]}  Kg7 {[%clk 0:00:19]} 47. a4 {[%clk 0:00:10]}  Ne5 {[%clk 0:00:19]} 48. a5 {[%clk 0:00:10]}  Nc4 {[%clk 0:00:18]} 49. axb6 {[%clk 0:00:09]}  Nxd2+ {[%clk 0:00:18]} 50. Kc2 {[%clk 0:00:08]}  Nc4 {[%clk 0:00:16]} 51. bxa7 {[%clk 0:00:09]}  Nb6 {[%clk 0:00:16]} 52. Kd3 {[%clk 0:00:08]}  Kf6 {[%clk 0:00:16]} 53. Kd4 {[%clk 0:00:09]}  Na8 {[%clk 0:00:15]} 54. Kc5 {[%clk 0:00:08]}  Ke5 {[%clk 0:00:15]} 55. f4+ {[%clk 0:00:08]}  Ke4 {[%clk 0:00:15]} 56. Kd6 {[%clk 0:00:09]}  d4 {[%clk 0:00:15]} 57. Kd7 {[%clk 0:00:09]}  d3 {[%clk 0:00:15]} 58. Kc8 {[%clk 0:00:09]}  d2 {[%clk 0:00:15]} 59. Kxb7 {[%clk 0:00:10]}  d1=Q {[%clk 0:00:13]} 60. Kxa8 {[%clk 0:00:10]}  Qa4 {[%clk 0:00:12]} 0-1


[Site "https://www.chess.com"]

[Event "Titled Tuesday Blitz February 07 Early 2023"]
[White "Alinasab, Mobina"]
[Black "Mogirzan, Matei-Valeriu"]
[WhiteFideId "12528897"]
[BlackFideId "1257455"]
[WhiteElo "2347"]
[BlackElo "1813"]
[Result "1-0"]
[Round "05"]
[TimeControl "180+2"]
[Date "2023.02.07"]
[WhiteClock "0:00:28"]
[BlackClock "0:00:03"]

1. e4 {[%clk 0:02:59]}  e5 {[%clk 0:02:57]} 2. Nf3 {[%clk 0:02:57]}  Nf6 {[%clk 0:02:58]} 3. Nxe5 {[%clk 0:02:47]}  Nc6 {[%clk 0:02:57]} 4. Nxc6 {[%clk 0:02:44]}  dxc6 {[%clk 0:02:58]} 5. Nc3 {[%clk 0:02:42]}  Bc5 {[%clk 0:02:57]} 6. Be2 {[%clk 0:02:38]}  h5 {[%clk 0:02:57]} 7. d3 {[%clk 0:02:38]}  Ng4 {[%clk 0:02:53]} 8. Bxg4 {[%clk 0:02:22]}  hxg4 {[%clk 0:02:33]} 9. Qe2 {[%clk 0:02:20]}  Qf6 {[%clk 0:02:07]} 10. Be3 {[%clk 0:02:17]}  Bb4 {[%clk 0:02:07]} 11. d4 {[%clk 0:02:15]}  c5 {[%clk 0:02:04]} 12. O-O-O {[%clk 0:02:06]}  Bxc3 {[%clk 0:01:56]} 13. bxc3 {[%clk 0:02:06]}  Bd7 {[%clk 0:01:54]} 14. Kb2 {[%clk 0:01:40]}  Qb6+ {[%clk 0:01:30]} 15. Ka1 {[%clk 0:01:40]}  Qa5 {[%clk 0:01:30]} 16. Qc4 {[%clk 0:01:34]}  b6 {[%clk 0:01:18]} 17. Kb2 {[%clk 0:01:08]}  O-O-O {[%clk 0:01:02]} 18. a3 {[%clk 0:00:59]}  Bb5 {[%clk 0:00:56]} 19. Qxf7 {[%clk 0:00:55]}  Qa4 {[%clk 0:00:44]} 20. Qb3 {[%clk 0:00:52]}  Qa6 {[%clk 0:00:40]} 21. dxc5 {[%clk 0:00:45]}  Bc4 {[%clk 0:00:27]} 22. Qb4 {[%clk 0:00:44]}  Rxd1 {[%clk 0:00:20]} 23. Rxd1 {[%clk 0:00:43]}  Rxh2 {[%clk 0:00:21]} 24. c6 {[%clk 0:00:42]}  Rh8 {[%clk 0:00:13]} 25. Bf4 {[%clk 0:00:33]}  b5 {[%clk 0:00:08]} 26. Rd7 {[%clk 0:00:31]}  Qxc6 {[%clk 0:00:05]} 27. Rxc7+ {[%clk 0:00:31]}  Qxc7 {[%clk 0:00:06]} 28. Bxc7 {[%clk 0:00:32]}  Kxc7 {[%clk 0:00:07]} 29. Qe7+ {[%clk 0:00:31]}  Kb6 {[%clk 0:00:05]} 30. Qxg7 {[%clk 0:00:32]}  Rg8 {[%clk 0:00:05]} 31. Qf6+ {[%clk 0:00:32]}  Kb7 {[%clk 0:00:03]} 32. e5 {[%clk 0:00:32]}  g3 {[%clk 0:00:03]} 33. fxg3 {[%clk 0:00:30]}  Rxg3 {[%clk 0:00:03]} 34. e6 {[%clk 0:00:29]}  Rxg2 {[%clk 0:00:03]} 35. Qf3+ {[%clk 0:00:28]} 1-0


[Site "https://www.chess.com"]